[Event "Early-Titled-Tuesday-Blitz-April-23-2024"]
[Site "Chess.com"]
[Date "2024.04.23"]
[Round "4"]
[White "Jakhongir-Vakhidov"]
[Black "DinaBelenkaya"]
[Result "1-0"]
[WhiteElo "2675"]
[BlackElo "2430"]
[TimeControl "180+1"]
[EndTime "8:40:47 PDT"]
[Termination "Jakhongir-Vakhidov won by checkmate"]

1. b3 {[%clk 0:03:00.9]} 1... d5 {[%clk 0:02:50.3]} 2. Bb2 {[%clk 0:02:57.9]}
2... Nf6 {[%clk 0:02:49.6]} 3. e3 {[%clk 0:02:57.6]} 3... c6 {[%clk 0:02:46.7]}
4. c4 {[%clk 0:02:53.4]} 4... Bf5 {[%clk 0:02:46.7]} 5. Nf3 {[%clk 0:02:52]}
5... e6 {[%clk 0:02:42.4]} 6. Be2 {[%clk 0:02:45.3]} 6... h6 {[%clk 0:02:42.2]}
7. O-O {[%clk 0:02:44.2]} 7... Nbd7 {[%clk 0:02:42.1]} 8. Nc3 {[%clk 0:02:42]}
8... Bd6 {[%clk 0:02:41.4]} 9. h3 {[%clk 0:02:41.4]} 9... O-O {[%clk 0:02:41.4]}
10. d4 {[%clk 0:02:41.4]} 10... Ne4 {[%clk 0:02:40.2]} 11. Nxe4 {[%clk
0:02:39.8]} 11... Bxe4 {[%clk 0:02:37.7]} 12. Bd3 {[%clk 0:02:40.1]} 12... f5
{[%clk 0:02:35.1]} 13. Be2 {[%clk 0:02:29.2]} 13... Qf6 {[%clk 0:02:22]} 14. Ne5
{[%clk 0:02:10.5]} 14... Nxe5 {[%clk 0:01:49.2]} 15. dxe5 {[%clk 0:02:10.6]}
15... Qg5 {[%clk 0:01:47.1]} 16. f3 {[%clk 0:01:59.7]} 16... Qxe3+ {[%clk
0:01:47]} 17. Kh1 {[%clk 0:01:59.3]} 17... Bc7 {[%clk 0:01:32.4]} 18. fxe4
{[%clk 0:01:45.6]} 18... fxe4 {[%clk 0:01:33.3]} 19. Bg4 {[%clk 0:01:42.1]}
19... Rae8 {[%clk 0:00:58.8]} 20. Rxf8+ {[%clk 0:01:35.2]} 20... Kxf8 {[%clk
0:00:59.7]} 21. Qf1+ {[%clk 0:01:15.7]} 21... Kg8 {[%clk 0:00:59.8]} 22. cxd5
{[%clk 0:01:16.1]} 22... exd5 {[%clk 0:00:57.4]} 23. e6 {[%clk 0:01:10.7]} 23...
Re7 {[%clk 0:00:28.7]} 24. Ba3 {[%clk 0:00:38.5]} 24... Qg3 {[%clk 0:00:28.2]}
25. Qg1 {[%clk 0:00:38.7]} 25... h5 {[%clk 0:00:20.3]} 26. Bxe7 {[%clk
0:00:25.8]} 26... hxg4 {[%clk 0:00:19.9]} 27. h4 {[%clk 0:00:22.6]} 27... e3
{[%clk 0:00:20.1]} 28. Rf1 {[%clk 0:00:17.4]} 28... e2 {[%clk 0:00:17.8]} 29.
Re1 {[%clk 0:00:17.4]} 29... Qe5 {[%clk 0:00:14.5]} 30. Bc5 {[%clk 0:00:12.4]}
30... g3 {[%clk 0:00:06.8]} 31. Qd4 {[%clk 0:00:09.5]} 31... Qxe6 {[%clk
0:00:06.4]} 32. Qd3 {[%clk 0:00:04.5]} 32... Qg4 {[%clk 0:00:06.7]} 33. Be7
{[%clk 0:00:04.3]} 33... Qe6 {[%clk 0:00:02.5]} 34. Qxe2 {[%clk 0:00:04.8]}
34... Qf7 {[%clk 0:00:02.4]} 35. Qe6 {[%clk 0:00:04.8]} 35... Qxe6 {[%clk
0:00:02]} 36. Rxe6 {[%clk 0:00:05.7]} 36... Kf7 {[%clk 0:00:02.7]} 37. Re2
{[%clk 0:00:06.1]} 37... d4 {[%clk 0:00:03.1]} 38. Bc5 {[%clk 0:00:05.9]} 38...
d3 {[%clk 0:00:03.5]} 39. Rd2 {[%clk 0:00:06.3]} 39... b6 {[%clk 0:00:04.3]} 40.
Be3 {[%clk 0:00:06.3]} 40... Bd8 {[%clk 0:00:04.6]} 41. Bg5 {[%clk 0:00:05.8]}
41... Bc7 {[%clk 0:00:02.8]} 42. Rxd3 {[%clk 0:00:06.4]} 42... g6 {[%clk
0:00:03]} 43. Rd7+ {[%clk 0:00:06.7]} 43... Ke6 {[%clk 0:00:03.6]} 44. Rxc7
{[%clk 0:00:07.6]} 44... Kf5 {[%clk 0:00:04.2]} 45. Rxc6 {[%clk 0:00:08]} 45...
Kg4 {[%clk 0:00:04.8]} 46. Rxg6 {[%clk 0:00:08.1]} 46... Kh5 {[%clk 0:00:05]}
47. Rf6 {[%clk 0:00:07.1]} 47... a5 {[%clk 0:00:05.1]} 48. Bf4 {[%clk 0:00:06]}
48... a4 {[%clk 0:00:04.9]} 49. Bxg3 {[%clk 0:00:06.3]} 49... axb3 {[%clk
0:00:05.1]} 50. axb3 {[%clk 0:00:07.2]} 50... b5 {[%clk 0:00:05.3]} 51. Rf4
{[%clk 0:00:07.8]} 51... b4 {[%clk 0:00:05.6]} 52. Kh2 {[%clk 0:00:08.7]} 52...
Kg6 {[%clk 0:00:05.7]} 53. Kh3 {[%clk 0:00:09.6]} 53... Kh5 {[%clk 0:00:06.4]}
54. Rf5+ {[%clk 0:00:10.1]} 54... Kg6 {[%clk 0:00:06.9]} 55. Rb5 {[%clk
0:00:11]} 55... Kh6 {[%clk 0:00:07.1]} 56. Kg4 {[%clk 0:00:11.9]} 56... Kg6
{[%clk 0:00:07.8]} 57. h5+ {[%clk 0:00:12.4]} 57... Kh6 {[%clk 0:00:08.7]} 58.
Bf4+ {[%clk 0:00:12.8]} 58... Kg7 {[%clk 0:00:09.3]} 59. Kf5 {[%clk 0:00:13.5]}
59... Kh7 {[%clk 0:00:09.8]} 60. Rb7+ {[%clk 0:00:13.8]} 60... Kg8 {[%clk
0:00:09.7]} 61. Kf6 {[%clk 0:00:10.7]} 61... Kh8 {[%clk 0:00:09.6]} 62. Kg6
{[%clk 0:00:11.1]} 62... Kg8 {[%clk 0:00:09.8]} 63. Rb8# {[%clk 0:00:11.7]} 1-0

[Event "Early-Titled-Tuesday-Blitz-April-23-2024"]
[Site "Chess.com"]
[Date "2024.04.23"]
[Round "4"]
[White "Rakhmanov_Aleksandr"]
[Black "Grischuk"]
[Result "0-1"]
[WhiteElo "2866"]
[BlackElo "3080"]
[TimeControl "180+1"]
[EndTime "8:40:48 PDT"]
[Termination "Grischuk won by resignation"]

1. d4 {[%clk 0:03:00.9]} 1... e6 {[%clk 0:02:59.7]} 2. c4 {[%clk 0:03:00.6]}
2... b6 {[%clk 0:02:59.4]} 3. Nc3 {[%clk 0:03:00.6]} 3... Bb4 {[%clk 0:02:58.6]}
4. e3 {[%clk 0:03:00.3]} 4... Bxc3+ {[%clk 0:02:49.1]} 5. bxc3 {[%clk
0:02:59.9]} 5... Bb7 {[%clk 0:02:49.8]} 6. Qg4 {[%clk 0:02:51.4]} 6... Nf6
{[%clk 0:02:32.5]} 7. Qh4 {[%clk 0:02:34.5]} 7... c5 {[%clk 0:02:16.4]} 8. f3
{[%clk 0:02:20.3]} 8... Nc6 {[%clk 0:02:12.5]} 9. Bd3 {[%clk 0:02:18.5]} 9...
Ba6 {[%clk 0:01:47.3]} 10. Ne2 {[%clk 0:02:10.1]} 10... d5 {[%clk 0:01:16.5]}
11. cxd5 {[%clk 0:01:54.5]} 11... Bxd3 {[%clk 0:01:15.4]} 12. dxc6 {[%clk
0:01:54.5]} 12... Bxe2 {[%clk 0:01:09.5]} 13. Kxe2 {[%clk 0:01:51.9]} 13... Qd5
{[%clk 0:00:57.9]} 14. dxc5 {[%clk 0:00:47.6]} 14... Qxc6 {[%clk 0:00:53.7]} 15.
cxb6 {[%clk 0:00:38.8]} 15... axb6 {[%clk 0:00:54.6]} 16. Bd2 {[%clk 0:00:11.6]}
16... O-O {[%clk 0:00:52.2]} 17. Rhd1 {[%clk 0:00:10.8]} 17... Ra4 {[%clk
0:00:44.1]} 18. Qg5 {[%clk 0:00:07.3]} 18... h6 {[%clk 0:00:26.2]} 19. Qe5
{[%clk 0:00:05.9]} 19... Rfa8 {[%clk 0:00:23.3]} 20. Ke1 {[%clk 0:00:03.5]}
20... R8a5 {[%clk 0:00:13.5]} 21. Qg3 {[%clk 0:00:02.6]} 21... Rxa2 {[%clk
0:00:04.3]} 22. Rxa2 {[%clk 0:00:03.5]} 22... Rxa2 {[%clk 0:00:04.8]} 23. e4
{[%clk 0:00:03.8]} 23... Kh7 {[%clk 0:00:04.6]} 24. Qf2 {[%clk 0:00:02.6]} 24...
Nd7 {[%clk 0:00:04.2]} 25. Qd4 {[%clk 0:00:02.6]} 25... f6 {[%clk 0:00:04.2]}
26. Kf1 {[%clk 0:00:03]} 26... Ne5 {[%clk 0:00:04.1]} 27. Kg1 {[%clk 0:00:03.2]}
27... b5 {[%clk 0:00:03.9]} 28. h3 {[%clk 0:00:03.2]} 28... Nc4 {[%clk
0:00:02.9]} 29. Be1 {[%clk 0:00:03.8]} 29... e5 {[%clk 0:00:03.4]} 30. Qd3
{[%clk 0:00:03.1]} 30... Qc5+ {[%clk 0:00:03.3]} 31. Kh1 {[%clk 0:00:02.5]}
31... Ne3 {[%clk 0:00:02.5]} 32. Rd2 {[%clk 0:00:02.9]} 32... Ra1 {[%clk
0:00:03.1]} 33. Qe2 {[%clk 0:00:02.8]} 33... Nc4 {[%clk 0:00:02.8]} 34. Rd1
{[%clk 0:00:02.9]} 34... Rxd1 {[%clk 0:00:02]} 35. Qxd1 {[%clk 0:00:03.8]} 35...
Qe3 {[%clk 0:00:02.4]} 36. Kh2 {[%clk 0:00:03.9]} 36... Qf4+ {[%clk 0:00:02.5]}
37. Bg3 {[%clk 0:00:03.7]} 37... Qe3 {[%clk 0:00:03]} 38. Qe1 {[%clk 0:00:04.4]}
38... Qd3 {[%clk 0:00:03]} 39. Bf2 {[%clk 0:00:04.8]} 39... Nd2 {[%clk
0:00:03.1]} 40. Kg1 {[%clk 0:00:04.3]} 40... Nc4 {[%clk 0:00:01.8]} 41. Kh2
{[%clk 0:00:03.4]} 41... Nd2 {[%clk 0:00:02]} 42. Kg1 {[%clk 0:00:03.5]} 42...
Nb1 {[%clk 0:00:02.4]} 43. Bc5 {[%clk 0:00:02.8]} 43... Nxc3 {[%clk 0:00:02.7]}
44. Kh2 {[%clk 0:00:02.7]} 44... Ne2 {[%clk 0:00:02.8]} 45. Qb4 {[%clk
0:00:02.2]} 45... Nf4 {[%clk 0:00:03]} 46. Qb2 {[%clk 0:00:01.6]} 46... Qe2
{[%clk 0:00:03]} 47. Qxe2 {[%clk 0:00:01.7]} 47... Nxe2 {[%clk 0:00:03.9]} 48.
g4 {[%clk 0:00:02.1]} 48... g5 {[%clk 0:00:03.1]} 49. Kg2 {[%clk 0:00:02.7]}
49... Kg6 {[%clk 0:00:03.1]} 50. Kf2 {[%clk 0:00:03.2]} 50... Nf4 {[%clk
0:00:03.6]} 51. Kg3 {[%clk 0:00:03.1]} 51... Nd3 {[%clk 0:00:03.9]} 52. Bd6
{[%clk 0:00:02.9]} 52... b4 {[%clk 0:00:04.4]} 53. Kg2 {[%clk 0:00:03.2]} 53...
b3 {[%clk 0:00:04.7]} 54. Ba3 {[%clk 0:00:03.8]} 54... b2 {[%clk 0:00:05.3]} 55.
Bxb2 {[%clk 0:00:04.5]} 55... Nxb2 {[%clk 0:00:06.2]} 0-1

[Event "Early-Titled-Tuesday-Blitz-April-23-2024"]
[Site "Chess.com"]
[Date "2024.04.23"]
[Round "4"]
[White "Thunderbolt135"]
[Black "FaustinoOro"]
[Result "1-0"]
[WhiteElo "2676"]
[BlackElo "2913"]
[TimeControl "180+1"]
[EndTime "8:40:48 PDT"]
[Termination "Thunderbolt135 won by resignation"]

1. b3 {[%clk 0:03:00.9]} 1... d5 {[%clk 0:02:58.8]} 2. Bb2 {[%clk 0:03:01.4]}
2... Nf6 {[%clk 0:02:58.2]} 3. e3 {[%clk 0:03:01.6]} 3... Bf5 {[%clk 0:02:57.1]}
4. f4 {[%clk 0:02:58.2]} 4... e6 {[%clk 0:02:54.3]} 5. Nf3 {[%clk 0:02:58.7]}
5... h6 {[%clk 0:02:53.1]} 6. Bd3 {[%clk 0:02:54.1]} 6... Bxd3 {[%clk
0:02:47.5]} 7. cxd3 {[%clk 0:02:55]} 7... Be7 {[%clk 0:02:47.6]} 8. O-O {[%clk
0:02:55.5]} 8... O-O {[%clk 0:02:47.4]} 9. d4 {[%clk 0:02:53.1]} 9... c5 {[%clk
0:02:43.5]} 10. Nc3 {[%clk 0:02:48.4]} 10... Nc6 {[%clk 0:02:40.8]} 11. dxc5
{[%clk 0:02:46]} 11... Bxc5 {[%clk 0:02:41.7]} 12. Rc1 {[%clk 0:02:46.4]} 12...
Rc8 {[%clk 0:02:35.7]} 13. Nb5 {[%clk 0:02:35.2]} 13... Qb6 {[%clk 0:02:07.8]}
14. Qe2 {[%clk 0:02:30.6]} 14... Be7 {[%clk 0:01:53.3]} 15. Nbd4 {[%clk
0:01:55.1]} 15... Nxd4 {[%clk 0:01:52.8]} 16. Bxd4 {[%clk 0:01:51.4]} 16... Qa5
{[%clk 0:01:51.8]} 17. d3 {[%clk 0:01:52.1]} 17... Nd7 {[%clk 0:01:42.9]} 18.
Qf2 {[%clk 0:01:46.2]} 18... Bf6 {[%clk 0:01:36.6]} 19. Bxf6 {[%clk 0:01:42.3]}
19... Nxf6 {[%clk 0:01:37.5]} 20. Ne5 {[%clk 0:01:42.8]} 20... Rc7 {[%clk
0:01:18.2]} 21. Rxc7 {[%clk 0:00:41]} 21... Qxc7 {[%clk 0:01:17.7]} 22. Qd2
{[%clk 0:00:41.6]} 22... Rc8 {[%clk 0:01:13.2]} 23. h3 {[%clk 0:00:42.2]} 23...
Ne8 {[%clk 0:01:04.1]} 24. Nf3 {[%clk 0:00:36.5]} 24... Nd6 {[%clk 0:01:00.8]}
25. Nd4 {[%clk 0:00:36.4]} 25... Qc3 {[%clk 0:00:42]} 26. Qxc3 {[%clk
0:00:36.1]} 26... Rxc3 {[%clk 0:00:42.9]} 27. Rd1 {[%clk 0:00:36.8]} 27... Kf8
{[%clk 0:00:38.9]} 28. Kf2 {[%clk 0:00:37.1]} 28... Ke7 {[%clk 0:00:35.5]} 29.
Ke2 {[%clk 0:00:37.7]} 29... f6 {[%clk 0:00:32.6]} 30. Kd2 {[%clk 0:00:38.1]}
30... Rc8 {[%clk 0:00:29.1]} 31. Rf1 {[%clk 0:00:38.3]} 31... g5 {[%clk
0:00:25.2]} 32. g4 {[%clk 0:00:29.5]} 32... Rh8 {[%clk 0:00:17.4]} 33. Nf3
{[%clk 0:00:23.6]} 33... Rc8 {[%clk 0:00:10.7]} 34. h4 {[%clk 0:00:19.5]} 34...
gxh4 {[%clk 0:00:09.8]} 35. Nxh4 {[%clk 0:00:20.4]} 35... Rg8 {[%clk 0:00:09.6]}
36. Rg1 {[%clk 0:00:21]} 36... f5 {[%clk 0:00:07.3]} 37. g5 {[%clk 0:00:19.6]}
37... hxg5 {[%clk 0:00:08]} 38. fxg5 {[%clk 0:00:19.8]} 38... Nf7 {[%clk
0:00:07.9]} 39. Nf3 {[%clk 0:00:18.9]} 39... Rh8 {[%clk 0:00:03.4]} 40. d4
{[%clk 0:00:13.6]} 40... Nd6 {[%clk 0:00:02.6]} 41. Ne5 {[%clk 0:00:13.2]} 41...
Ne4+ {[%clk 0:00:03.2]} 42. Ke1 {[%clk 0:00:11.2]} 42... Rc8 {[%clk 0:00:02.2]}
43. Kd1 {[%clk 0:00:10.1]} 43... Rc3 {[%clk 0:00:02.2]} 44. g6 {[%clk
0:00:09.4]} 44... Kf8 {[%clk 0:00:02.9]} 45. g7+ {[%clk 0:00:04.7]} 45... Kg8
{[%clk 0:00:03.5]} 46. Nf7 {[%clk 0:00:05.6]} 46... Nf2+ {[%clk 0:00:01.7]} 47.
Kd2 {[%clk 0:00:02.7]} 47... Ne4+ {[%clk 0:00:02.3]} 48. Ke2 {[%clk 0:00:02.7]}
48... Rc2+ {[%clk 0:00:02.4]} 49. Kd1 {[%clk 0:00:03.1]} 49... Rd2+ {[%clk
0:00:03]} 50. Ke1 {[%clk 0:00:03.8]} 50... Nf6 {[%clk 0:00:01.5]} 51. Nh6+
{[%clk 0:00:04]} 51... Kh7 {[%clk 0:00:01.6]} 52. Kxd2 {[%clk 0:00:04.9]} 52...
Kxh6 {[%clk 0:00:01.6]} 53. g8=Q {[%clk 0:00:05.5]} 53... Nxg8 {[%clk
0:00:02.3]} 54. Rxg8 {[%clk 0:00:05.9]} 1-0

[Event "Early-Titled-Tuesday-Blitz-April-23-2024"]
[Site "Chess.com"]
[Date "2024.04.23"]
[Round "4"]
[White "yonaltimur"]
[Black "chess123456s"]
[Result "0-1"]
[WhiteElo "2407"]
[BlackElo "2613"]
[TimeControl "180+1"]
[EndTime "8:40:48 PDT"]
[Termination "chess123456s won on time"]

1. e4 {[%clk 0:02:59.8]} 1... e5 {[%clk 0:02:59.9]} 2. Nf3 {[%clk 0:02:59.9]}
2... Nc6 {[%clk 0:03:00.3]} 3. Bb5 {[%clk 0:02:59.8]} 3... a6 {[%clk 0:03:00.7]}
4. Ba4 {[%clk 0:03:00.3]} 4... Bc5 {[%clk 0:03:00.8]} 5. O-O {[%clk 0:03:00.3]}
5... Nge7 {[%clk 0:03:00.7]} 6. c3 {[%clk 0:03:00.5]} 6... Ng6 {[%clk
0:03:01.3]} 7. d4 {[%clk 0:03:00.3]} 7... Ba7 {[%clk 0:03:01.3]} 8. d5 {[%clk
0:02:47.7]} 8... Nce7 {[%clk 0:03:00.7]} 9. d6 {[%clk 0:02:47.8]} 9... cxd6
{[%clk 0:03:01.6]} 10. Qxd6 {[%clk 0:02:48.5]} 10... O-O {[%clk 0:02:51]} 11.
Rd1 {[%clk 0:02:18.5]} 11... Bb8 {[%clk 0:02:49.9]} 12. Qd3 {[%clk 0:02:16.9]}
12... d5 {[%clk 0:02:46]} 13. exd5 {[%clk 0:02:14.8]} 13... Bf5 {[%clk
0:02:46.1]} 14. Qe2 {[%clk 0:02:13.7]} 14... e4 {[%clk 0:02:41.5]} 15. Nd4
{[%clk 0:02:13.7]} 15... Qxd5 {[%clk 0:02:18.7]} 16. Nxf5 {[%clk 0:01:53.6]}
16... Qxf5 {[%clk 0:02:19.6]} 17. Nd2 {[%clk 0:01:51]} 17... Qe5 {[%clk
0:01:56.9]} 18. Nf1 {[%clk 0:01:49.8]} 18... f5 {[%clk 0:01:53.3]} 19. Be3
{[%clk 0:01:41.2]} 19... f4 {[%clk 0:01:51.4]} 20. Bd4 {[%clk 0:01:40.7]} 20...
f3 {[%clk 0:01:46.9]} 21. Qc4+ {[%clk 0:01:31.7]} 21... Kh8 {[%clk 0:01:42.2]}
22. Bxe5 {[%clk 0:01:31.6]} 22... Nxe5 {[%clk 0:01:43]} 23. Qxe4 {[%clk
0:01:28.5]} 23... fxg2 {[%clk 0:01:42.2]} 24. Kxg2 {[%clk 0:01:28.1]} 24... N7g6
{[%clk 0:01:42]} 25. Ng3 {[%clk 0:01:25.8]} 25... Ra7 {[%clk 0:01:36.3]} 26. f4
{[%clk 0:01:22.7]} 26... Ng4 {[%clk 0:01:24.5]} 27. Rf1 {[%clk 0:01:17.4]} 27...
b5 {[%clk 0:01:23.8]} 28. Bc2 {[%clk 0:01:15.9]} 28... Re7 {[%clk 0:01:22.8]}
29. Qf3 {[%clk 0:01:10.1]} 29... Ne3+ {[%clk 0:01:22.5]} 30. Kh1 {[%clk
0:01:10.5]} 30... Nxc2 {[%clk 0:01:22.3]} 31. Rac1 {[%clk 0:01:08.3]} 31... Ne3
{[%clk 0:01:20.8]} 32. Rfe1 {[%clk 0:01:05.4]} 32... Bxf4 {[%clk 0:01:19.2]} 33.
Ne4 {[%clk 0:00:41.3]} 33... Nh4 {[%clk 0:00:50.2]} 34. Qf2 {[%clk 0:00:35.6]}
34... Nhg2 {[%clk 0:00:41.3]} 35. Ng3 {[%clk 0:00:20.7]} 35... Nxe1 {[%clk
0:00:41.1]} 36. Rxe1 {[%clk 0:00:21.3]} 36... Ree8 {[%clk 0:00:40.3]} 37. Qe2
{[%clk 0:00:16.7]} 37... Bh6 {[%clk 0:00:37.8]} 38. Nf1 {[%clk 0:00:14.9]} 38...
g6 {[%clk 0:00:29.7]} 39. Nxe3 {[%clk 0:00:14.1]} 39... Rxe3 {[%clk 0:00:30.6]}
40. Qd1 {[%clk 0:00:14.4]} 40... Ref3 {[%clk 0:00:25.5]} 41. Qd4+ {[%clk
0:00:13.3]} 41... Bg7 {[%clk 0:00:25.8]} 42. Qb6 {[%clk 0:00:11.9]} 42... Rf2
{[%clk 0:00:25.4]} 43. Qxa6 {[%clk 0:00:10.4]} 43... Rxb2 {[%clk 0:00:25.4]} 44.
a4 {[%clk 0:00:08.7]} 44... bxa4 {[%clk 0:00:24.4]} 45. Qxa4 {[%clk 0:00:09.6]}
45... h6 {[%clk 0:00:23.2]} 46. Qe4 {[%clk 0:00:06.7]} 46... Kh7 {[%clk
0:00:19.9]} 47. Rg1 {[%clk 0:00:06.3]} 47... Rf6 {[%clk 0:00:20.1]} 48. c4
{[%clk 0:00:06]} 48... Rbb6 {[%clk 0:00:17]} 49. c5 {[%clk 0:00:06.4]} 49...
Rbc6 {[%clk 0:00:17.4]} 50. Qd5 {[%clk 0:00:06.2]} 50... Rfe6 {[%clk 0:00:14.2]}
51. h4 {[%clk 0:00:04.7]} 51... h5 {[%clk 0:00:13.9]} 0-1

[Event "Early-Titled-Tuesday-Blitz-April-23-2024"]
[Site "Chess.com"]
[Date "2024.04.23"]
[Round "4"]
[White "rezamahdavi2008"]
[Black "HansOnTwitch"]
[Result "0-1"]
[WhiteElo "2912"]
[BlackElo "3236"]
[TimeControl "180+1"]
[EndTime "8:40:49 PDT"]
[Termination "HansOnTwitch won by resignation"]

1. e4 {[%clk 0:03:00.9]} 1... c6 {[%clk 0:02:51.8]} 2. d4 {[%clk 0:02:59.1]}
2... d5 {[%clk 0:02:51.9]} 3. exd5 {[%clk 0:02:59.9]} 3... cxd5 {[%clk
0:02:52.8]} 4. Bd3 {[%clk 0:03:00.5]} 4... Nf6 {[%clk 0:02:45.7]} 5. c3 {[%clk
0:02:59.5]} 5... Bg4 {[%clk 0:02:43.6]} 6. Nf3 {[%clk 0:02:56.7]} 6... Nc6
{[%clk 0:02:40.8]} 7. h3 {[%clk 0:02:45.8]} 7... Bh5 {[%clk 0:02:39.9]} 8. Bf4
{[%clk 0:02:44.5]} 8... e6 {[%clk 0:02:40.2]} 9. Nbd2 {[%clk 0:02:44.3]} 9...
Bd6 {[%clk 0:02:40]} 10. Bxd6 {[%clk 0:02:45]} 10... Qxd6 {[%clk 0:02:40.7]} 11.
O-O {[%clk 0:02:44.9]} 11... O-O {[%clk 0:02:40.8]} 12. Re1 {[%clk 0:02:45.2]}
12... a6 {[%clk 0:02:36]} 13. Qb1 {[%clk 0:02:40.9]} 13... Bg6 {[%clk
0:02:33.7]} 14. Bxg6 {[%clk 0:02:40.3]} 14... hxg6 {[%clk 0:02:34.6]} 15. Ne5
{[%clk 0:02:39.4]} 15... Rfc8 {[%clk 0:02:32.2]} 16. Qd3 {[%clk 0:02:36.4]}
16... b5 {[%clk 0:02:32.2]} 17. Ndf3 {[%clk 0:02:32.6]} 17... Ne4 {[%clk
0:02:29.7]} 18. h4 {[%clk 0:02:30.9]} 18... Rab8 {[%clk 0:02:19.9]} 19. a3
{[%clk 0:02:28.9]} 19... a5 {[%clk 0:02:20]} 20. Ng5 {[%clk 0:02:22]} 20... Nxg5
{[%clk 0:01:49.8]} 21. hxg5 {[%clk 0:02:22.9]} 21... Nxe5 {[%clk 0:01:49.8]} 22.
Rxe5 {[%clk 0:02:22.9]} 22... b4 {[%clk 0:01:48.1]} 23. axb4 {[%clk 0:02:23.8]}
23... axb4 {[%clk 0:01:49]} 24. Ra6 {[%clk 0:02:13.4]} 24... Qc7 {[%clk
0:01:40]} 25. Re3 {[%clk 0:02:01.1]} 25... bxc3 {[%clk 0:01:39.3]} 26. Qxc3
{[%clk 0:01:50.1]} 26... Qf4 {[%clk 0:01:35.6]} 27. Qd2 {[%clk 0:01:38.2]} 27...
Qxg5 {[%clk 0:01:33.7]} 28. Ra7 {[%clk 0:01:38.4]} 28... Qf4 {[%clk 0:01:24.9]}
29. g3 {[%clk 0:01:25]} 29... Qf5 {[%clk 0:01:24.8]} 30. Kg2 {[%clk 0:01:24.5]}
30... Rc2 {[%clk 0:01:24.2]} 31. Qe1 {[%clk 0:01:23.6]} 31... f6 {[%clk
0:01:03.9]} 32. b3 {[%clk 0:01:17.5]} 32... Rb2 {[%clk 0:00:56.6]} 33. Re7
{[%clk 0:00:57.9]} 33... R8xb3 {[%clk 0:00:30.3]} 34. Re8+ {[%clk 0:00:51]}
34... Kf7 {[%clk 0:00:21.8]} 35. R8xe6 {[%clk 0:00:37.1]} 35... Rxe3 {[%clk
0:00:14.3]} 36. Rxe3 {[%clk 0:00:38]} 36... g5 {[%clk 0:00:08.7]} 37. Re7+
{[%clk 0:00:24.3]} 37... Kg6 {[%clk 0:00:08.6]} 38. Re3 {[%clk 0:00:19.8]} 38...
g4 {[%clk 0:00:07.3]} 39. Qf1 {[%clk 0:00:11.7]} 39... Rd2 {[%clk 0:00:05.8]}
40. Qe1 {[%clk 0:00:08.9]} 40... Rxd4 {[%clk 0:00:05.8]} 41. Qa5 {[%clk
0:00:05.9]} 41... Re4 {[%clk 0:00:03.8]} 42. Qd2 {[%clk 0:00:02.2]} 42... Rxe3
{[%clk 0:00:03.9]} 43. fxe3 {[%clk 0:00:03.1]} 43... Qf3+ {[%clk 0:00:02.9]} 44.
Kh2 {[%clk 0:00:03.8]} 44... Kf7 {[%clk 0:00:02.7]} 45. Qd4 {[%clk 0:00:02.2]}
45... Qf2+ {[%clk 0:00:02.6]} 46. Kh1 {[%clk 0:00:02.7]} 46... Qf1+ {[%clk
0:00:03.3]} 47. Kh2 {[%clk 0:00:03.1]} 47... Qh3+ {[%clk 0:00:04.2]} 48. Kg1
{[%clk 0:00:03.3]} 48... Qxg3+ {[%clk 0:00:05.1]} 49. Kh1 {[%clk 0:00:04.2]}
49... Qf3+ {[%clk 0:00:06]} 50. Kh2 {[%clk 0:00:04.7]} 50... Qe4 {[%clk
0:00:06.9]} 51. Qc5 {[%clk 0:00:04]} 51... Kg6 {[%clk 0:00:07.2]} 52. Qc3 {[%clk
0:00:04]} 52... Qf3 {[%clk 0:00:07.1]} 53. Qd3+ {[%clk 0:00:04.5]} 53... Kg5
{[%clk 0:00:07.8]} 54. Qd4 {[%clk 0:00:03.9]} 54... g3+ {[%clk 0:00:04.2]} 55.
Kh3 {[%clk 0:00:04.6]} 55... g2+ {[%clk 0:00:04.9]} 56. Kh2 {[%clk 0:00:05.3]}
56... g1=Q+ {[%clk 0:00:05.6]} 0-1